[Event "Titled Tuesday Blitz May 9 Early 2023"]
[White "Bettalli, Francesco"]
[Black "bubeliang"]
[WhiteFideId "2816453"]
[WhiteElo "2216"]
[BlackElo "2645"]
[Result "1/2-1/2"]
[Round "06"]
[TimeControl "180+2"]
[Date "2023.05.09"]
[WhiteClock "0:02:06"]
[BlackClock "0:00:58"]

1. d4 {[%clk 0:03:00]}  d5 {[%clk 0:02:57]} 2. Nc3 {[%clk 0:03:01]}  Nf6 {[%clk 0:02:55]} 3. Bf4 {[%clk 0:03:01]}  c5 {[%clk 0:02:55]} 4. e3 {[%clk 0:03:02]}  cxd4 {[%clk 0:02:55]} 5. exd4 {[%clk 0:03:02]}  a6 {[%clk 0:02:55]} 6. Nf3 {[%clk 0:03:02]}  Nc6 {[%clk 0:02:55]} 7. Be2 {[%clk 0:03:02]}  e6 {[%clk 0:02:55]} 8. O-O {[%clk 0:03:02]}  Be7 {[%clk 0:02:48]} 9. Ne5 {[%clk 0:03:02]}  O-O {[%clk 0:02:48]} 10. Qd2 {[%clk 0:02:58]}  Nxe5 {[%clk 0:02:46]} 11. dxe5 {[%clk 0:02:58]}  Nd7 {[%clk 0:02:45]} 12. Rad1 {[%clk 0:02:58]}  b5 {[%clk 0:02:42]} 13. a3 {[%clk 0:02:58]}  Nb6 {[%clk 0:02:41]} 14. Qe3 {[%clk 0:02:57]}  Nc4 {[%clk 0:02:34]} 15. Bxc4 {[%clk 0:02:57]}  bxc4 {[%clk 0:02:35]} 16. b4 {[%clk 0:02:57]}  cxb3 {[%clk 0:02:27]} 17. cxb3 {[%clk 0:02:58]}  Bxa3 {[%clk 0:02:26]} 18. Na4 {[%clk 0:02:57]}  Rb8 {[%clk 0:02:22]} 19. Bg3 {[%clk 0:02:53]}  Bd7 {[%clk 0:02:19]} 20. f4 {[%clk 0:02:52]}  Bxa4 {[%clk 0:02:16]} 21. bxa4 {[%clk 0:02:53]}  Qb6 {[%clk 0:02:17]} 22. Bf2 {[%clk 0:02:48]}  Qxe3 {[%clk 0:02:16]} 23. Bxe3 {[%clk 0:02:49]}  Rfc8 {[%clk 0:02:16]} 24. f5 {[%clk 0:02:49]}  Bc5 {[%clk 0:02:12]} 25. Bxc5 {[%clk 0:02:47]}  Rxc5 {[%clk 0:02:13]} 26. fxe6 {[%clk 0:02:48]}  fxe6 {[%clk 0:02:14]} 27. Rb1 {[%clk 0:02:46]}  Rxb1 {[%clk 0:02:11]} 28. Rxb1 {[%clk 0:02:45]}  d4 {[%clk 0:02:12]} 29. Rb6 {[%clk 0:02:45]}  Rxe5 {[%clk 0:02:12]} 30. Rxa6 {[%clk 0:02:45]}  Kf7 {[%clk 0:02:01]} 31. Kf2 {[%clk 0:02:45]}  Re3 {[%clk 0:02:01]} 32. Rd6 {[%clk 0:02:44]}  e5 {[%clk 0:02:00]} 33. a5 {[%clk 0:02:44]}  Ra3 {[%clk 0:01:59]} 34. a6 {[%clk 0:02:44]}  h6 {[%clk 0:01:56]} 35. Rd7+ {[%clk 0:02:43]}  Kf6 {[%clk 0:01:56]} 36. a7 {[%clk 0:02:43]}  g6 {[%clk 0:01:52]} 37. h4 {[%clk 0:02:42]}  Kf5 {[%clk 0:01:52]} 38. Ke2 {[%clk 0:02:37]}  Ke4 {[%clk 0:01:50]} 39. Kd2 {[%clk 0:02:37]}  Ra2+ {[%clk 0:01:50]} 40. Kc1 {[%clk 0:02:38]}  Ke3 {[%clk 0:01:50]} 41. g4 {[%clk 0:02:37]}  e4 {[%clk 0:01:50]} 42. Kb1 {[%clk 0:02:37]}  Ra6 {[%clk 0:01:49]} 43. Kc2 {[%clk 0:02:33]}  d3+ {[%clk 0:01:48]} 44. Kc3 {[%clk 0:02:34]}  Ke2 {[%clk 0:01:48]} 45. Rd4 {[%clk 0:02:31]}  e3 {[%clk 0:01:32]} 46. Rxd3 {[%clk 0:02:31]}  Rxa7 {[%clk 0:01:31]} 47. Rd6 {[%clk 0:02:32]}  g5 {[%clk 0:01:28]} 48. Rxh6 {[%clk 0:02:28]}  Rc7+ {[%clk 0:01:17]} 49. Kd4 {[%clk 0:02:27]}  gxh4 {[%clk 0:01:16]} 50. Rxh4 {[%clk 0:02:27]}  Kf3 {[%clk 0:01:13]} 51. Rh3+ {[%clk 0:02:26]}  Kf4 {[%clk 0:01:13]} 52. Kd3 {[%clk 0:02:23]}  Rd7+ {[%clk 0:01:10]} 53. Ke2 {[%clk 0:02:23]}  Rd2+ {[%clk 0:01:10]} 54. Ke1 {[%clk 0:02:24]}  Ra2 {[%clk 0:01:11]} 55. g5 {[%clk 0:02:22]}  Ra5 {[%clk 0:01:08]} 56. g6 {[%clk 0:02:20]}  Rg5 {[%clk 0:01:07]} 57. Rh4+ {[%clk 0:02:18]}  Kf3 {[%clk 0:01:04]} 58. Rh3+ {[%clk 0:02:19]}  Ke4 {[%clk 0:01:04]} 59. Rh8 {[%clk 0:02:05]}  Rg1+ {[%clk 0:01:03]} 60. Ke2 {[%clk 0:02:05]}  Rg2+ {[%clk 0:01:04]} 61. Ke1 {[%clk 0:02:05]}  Rxg6 {[%clk 0:01:04]} 62. Re8+ {[%clk 0:02:05]}  Kd4 {[%clk 0:01:04]} 63. Rd8+ {[%clk 0:02:05]}  Kc3 {[%clk 0:01:03]} 64. Rc8+ {[%clk 0:02:05]}  Kd3 {[%clk 0:00:58]} 65. Rd8+ {[%clk 0:02:06]} 1/2-1/2


[Site "https://www.chess.com"]

[Event "Titled Tuesday Blitz May 9 Early 2023"]
[White "Akash G"]
[Black "Gutkin, Ilya"]
[WhiteFideId "5040299"]
[BlackFideId "16203470"]
[WhiteElo "2395"]
[BlackElo "2265"]
[Result "1-0"]
[Round "06"]
[TimeControl "180+2"]
[Date "2023.05.09"]
[WhiteClock "0:00:20"]
[BlackClock "0:00:00"]

1. e4 {[%clk 0:03:00]}  e6 {[%clk 0:02:59]} 2. d4 {[%clk 0:02:57]}  d5 {[%clk 0:03:00]} 3. Nc3 {[%clk 0:02:57]}  Nf6 {[%clk 0:02:59]} 4. e5 {[%clk 0:02:57]}  Nfd7 {[%clk 0:02:59]} 5. f4 {[%clk 0:02:58]}  c5 {[%clk 0:03:00]} 6. Nf3 {[%clk 0:02:59]}  Nc6 {[%clk 0:03:00]} 7. Be3 {[%clk 0:02:59]}  a6 {[%clk 0:03:01]} 8. Qd2 {[%clk 0:02:55]}  b5 {[%clk 0:03:01]} 9. dxc5 {[%clk 0:02:55]}  Bxc5 {[%clk 0:03:01]} 10. Bd3 {[%clk 0:02:39]}  Qb6 {[%clk 0:03:00]} 11. Bf2 {[%clk 0:02:36]}  O-O {[%clk 0:02:59]} 12. O-O {[%clk 0:02:36]}  f6 {[%clk 0:02:57]} 13. exf6 {[%clk 0:02:32]}  Nxf6 {[%clk 0:02:58]} 14. Rae1 {[%clk 0:02:29]}  Bxf2+ {[%clk 0:02:22]} 15. Qxf2 {[%clk 0:02:28]}  Qxf2+ {[%clk 0:02:21]} 16. Kxf2 {[%clk 0:02:11]}  Ng4+ {[%clk 0:02:20]} 17. Kg3 {[%clk 0:02:11]}  Nf6 {[%clk 0:02:20]} 18. Ne5 {[%clk 0:02:07]}  Nd4 {[%clk 0:01:49]} 19. Ne2 {[%clk 0:01:54]}  Nxe2+ {[%clk 0:01:23]} 20. Rxe2 {[%clk 0:01:29]}  Ra7 {[%clk 0:01:14]} 21. Kh4 {[%clk 0:01:23]}  Rc7 {[%clk 0:00:55]} 22. g4 {[%clk 0:01:22]}  Bb7 {[%clk 0:00:55]} 23. Kg3 {[%clk 0:01:13]}  Ne4+ {[%clk 0:00:53]} 24. Kg2 {[%clk 0:01:11]}  g6 {[%clk 0:00:39]} 25. h4 {[%clk 0:01:06]}  Kg7 {[%clk 0:00:37]} 26. g5 {[%clk 0:01:04]}  h5 {[%clk 0:00:31]} 27. gxh6+ {[%clk 0:01:02]}  Kxh6 {[%clk 0:00:32]} 28. Kh3 {[%clk 0:01:00]}  Rf6 {[%clk 0:00:22]} 29. Ng4+ {[%clk 0:00:59]}  Kg7 {[%clk 0:00:22]} 30. Nxf6 {[%clk 0:01:00]}  Kxf6 {[%clk 0:00:23]} 31. Rg1 {[%clk 0:00:52]}  Rh7 {[%clk 0:00:16]} 32. Reg2 {[%clk 0:00:47]}  Rh6 {[%clk 0:00:15]} 33. Kg4 {[%clk 0:00:43]}  Bc6 {[%clk 0:00:12]} 34. Kf3 {[%clk 0:00:42]}  Bb7 {[%clk 0:00:07]} 35. Ke3 {[%clk 0:00:42]}  Kf7 {[%clk 0:00:04]} 36. Rg4 {[%clk 0:00:37]}  Kf6 {[%clk 0:00:01]} 37. Kd4 {[%clk 0:00:37]}  Bc6 {[%clk 0:00:01]} 38. Bxe4 {[%clk 0:00:34]}  dxe4 {[%clk 0:00:02]} 39. Kc5 {[%clk 0:00:33]}  Bd5 {[%clk 0:00:02]} 40. R1g3 {[%clk 0:00:32]}  Bc4 {[%clk 0:00:01]} 41. Kd4 {[%clk 0:00:28]}  Rh5 {[%clk 0:00:01]} 42. Kxe4 {[%clk 0:00:26]}  Bd5+ {[%clk 0:00:01]} 43. Ke3 {[%clk 0:00:27]}  Rh6 {[%clk 0:00:02]} 44. b3 {[%clk 0:00:27]}  b4 {[%clk 0:00:02]} 45. Kd4 {[%clk 0:00:27]}  a5 {[%clk 0:00:03]} 46. Kc5 {[%clk 0:00:27]}  Be4 {[%clk 0:00:03]} 47. Kb5 {[%clk 0:00:27]}  Rh5+ {[%clk 0:00:03]} 48. Kb6 {[%clk 0:00:26]}  Bxc2 {[%clk 0:00:04]} 49. Rg5 {[%clk 0:00:24]}  Rxh4 {[%clk 0:00:04]} 50. R3g4 {[%clk 0:00:22]}  Rxg4 {[%clk 0:00:04]} 51. Rxg4 {[%clk 0:00:22]}  Kf5 {[%clk 0:00:05]} 52. Rh4 {[%clk 0:00:22]}  Bb1 {[%clk 0:00:03]} 53. Kxa5 {[%clk 0:00:20]}  Bxa2 {[%clk 0:00:04]} 54. Kxb4 {[%clk 0:00:21]}  e5 {[%clk 0:00:04]} 55. fxe5 {[%clk 0:00:21]}  Kxe5 {[%clk 0:00:05]} 56. Rh1 {[%clk 0:00:20]}  g5 {[%clk 0:00:05]} 57. Ra1 {[%clk 0:00:19]}  Bxb3 {[%clk 0:00:03]} 58. Kxb3 {[%clk 0:00:20]}  Ke4 {[%clk 0:00:03]} 59. Kc3 {[%clk 0:00:20]}  Ke3 {[%clk 0:00:03]} 60. Rg1 {[%clk 0:00:18]}  Kf4 {[%clk 0:00:03]} 61. Kd2 {[%clk 0:00:19]}  g4 {[%clk 0:00:04]} 62. Ke2 {[%clk 0:00:19]}  g3 {[%clk 0:00:04]} 63. Kf1 {[%clk 0:00:17]}  Kf3 {[%clk 0:00:05]} 64. Rg2 {[%clk 0:00:18]}  Kf4 {[%clk 0:00:04]} 65. Ra2 {[%clk 0:00:19]}  Kf3 {[%clk 0:00:00]} 66. Ra3+ {[%clk 0:00:20]} 1-0


[Site "https://www.chess.com"]

[Event "Titled Tuesday Blitz May 9 Early 2023"]
[White "Yaniuk, Volodymyr"]
[Black "Titichoca Daza, Daniel"]
[WhiteFideId "14133083"]
[BlackFideId "3309550"]
[WhiteElo "2141"]
[BlackElo "2101"]
[Result "1-0"]
[Round "06"]
[TimeControl "180+2"]
[Date "2023.05.09"]
[WhiteClock "0:02:10"]
[BlackClock "0:00:20"]

1. d4 {[%clk 0:02:36]}  Nf6 {[%clk 0:02:59]} 2. c4 {[%clk 0:02:36]}  e6 {[%clk 0:02:59]} 3. g3 {[%clk 0:02:35]}  d5 {[%clk 0:02:56]} 4. Bg2 {[%clk 0:02:35]}  h6 {[%clk 0:02:56]} 5. Nc3 {[%clk 0:02:35]}  Nc6 {[%clk 0:02:48]} 6. cxd5 {[%clk 0:02:32]}  exd5 {[%clk 0:02:48]} 7. Nf3 {[%clk 0:02:32]}  Bd6 {[%clk 0:02:38]} 8. O-O {[%clk 0:02:32]}  O-O {[%clk 0:02:37]} 9. Nb5 {[%clk 0:02:32]}  Be7 {[%clk 0:02:37]} 10. Bf4 {[%clk 0:02:30]}  Ne8 {[%clk 0:02:37]} 11. Rc1 {[%clk 0:02:25]}  a6 {[%clk 0:02:36]} 12. Nc3 {[%clk 0:02:22]}  Nf6 {[%clk 0:02:31]} 13. Ne5 {[%clk 0:02:21]}  Nb8 {[%clk 0:01:57]} 14. e4 {[%clk 0:02:18]}  dxe4 {[%clk 0:01:56]} 15. Nxe4 {[%clk 0:02:19]}  Nd5 {[%clk 0:01:56]} 16. Bd2 {[%clk 0:02:18]}  Nd7 {[%clk 0:01:48]} 17. Nxd7 {[%clk 0:02:15]}  Bxd7 {[%clk 0:01:47]} 18. Nc5 {[%clk 0:02:15]}  Bc6 {[%clk 0:01:42]} 19. Qb3 {[%clk 0:02:15]}  Bf6 {[%clk 0:01:36]} 20. Nxb7 {[%clk 0:02:13]}  Bxb7 {[%clk 0:00:24]} 21. Qxb7 {[%clk 0:02:13]}  Rb8 {[%clk 0:00:20]} 22. Qxd5 {[%clk 0:02:10]} 1-0


[Site "https://www.chess.com"]

[Event "Titled Tuesday Blitz May 9 Early 2023"]
[White "Van Dael, Siem"]
[Black "Gontcharov, Vladislav"]
[WhiteFideId "1049771"]
[BlackFideId "4123492"]
[WhiteElo "2336"]
[BlackElo "2420"]
[Result "1-0"]
[Round "06"]
[TimeControl "180+2"]
[Date "2023.05.09"]
[WhiteClock "0:00:08"]
[BlackClock "0:00:19"]

1. e4 {[%clk 0:03:00]}  e6 {[%clk 0:02:59]} 2. d4 {[%clk 0:03:00]}  d5 {[%clk 0:02:59]} 3. Nc3 {[%clk 0:03:01]}  Bb4 {[%clk 0:02:58]} 4. e5 {[%clk 0:03:01]}  c5 {[%clk 0:02:58]} 5. a3 {[%clk 0:03:02]}  Bxc3+ {[%clk 0:02:59]} 6. bxc3 {[%clk 0:03:03]}  Ne7 {[%clk 0:02:59]} 7. Qg4 {[%clk 0:03:04]}  O-O {[%clk 0:02:58]} 8. Bd3 {[%clk 0:03:04]}  Nbc6 {[%clk 0:02:57]} 9. Nf3 {[%clk 0:03:04]}  f5 {[%clk 0:02:57]} 10. exf6 {[%clk 0:03:04]}  Rxf6 {[%clk 0:02:57]} 11. Bg5 {[%clk 0:03:05]}  Rf7 {[%clk 0:02:58]} 12. Qh5 {[%clk 0:03:00]}  g6 {[%clk 0:02:58]} 13. Qh4 {[%clk 0:03:01]}  Qa5 {[%clk 0:02:47]} 14. O-O {[%clk 0:02:50]}  c4 {[%clk 0:02:43]} 15. Be2 {[%clk 0:02:46]}  Qxc3 {[%clk 0:02:43]} 16. Bd2 {[%clk 0:02:41]}  Qxc2 {[%clk 0:02:39]} 17. Rfc1 {[%clk 0:02:38]}  Qf5 {[%clk 0:02:26]} 18. Ng5 {[%clk 0:02:36]}  Qf6 {[%clk 0:02:01]} 19. Be3 {[%clk 0:02:20]}  Nf5 {[%clk 0:02:00]} 20. Qg4 {[%clk 0:02:13]}  h5 {[%clk 0:01:42]} 21. Qh3 {[%clk 0:02:00]}  Nfxd4 {[%clk 0:01:36]} 22. Bf1 {[%clk 0:01:45]}  e5 {[%clk 0:01:31]} 23. Qg3 {[%clk 0:01:40]}  Rg7 {[%clk 0:01:20]} 24. Bxd4 {[%clk 0:01:33]}  Nxd4 {[%clk 0:01:20]} 25. h4 {[%clk 0:01:31]}  Nb3 {[%clk 0:01:15]} 26. Re1 {[%clk 0:01:14]}  Nxa1 {[%clk 0:01:12]} 27. Rxe5 {[%clk 0:01:13]}  Bf5 {[%clk 0:01:08]} 28. Rxd5 {[%clk 0:01:12]}  Bd3 {[%clk 0:01:05]} 29. Rd6 {[%clk 0:00:52]}  Qb2 {[%clk 0:00:47]} 30. Ne6 {[%clk 0:00:35]}  Qc1 {[%clk 0:00:33]} 31. Nxg7 {[%clk 0:00:34]}  Qxf1+ {[%clk 0:00:32]} 32. Kh2 {[%clk 0:00:34]}  Rf8 {[%clk 0:00:31]} 33. Nf5 {[%clk 0:00:27]}  Bxf5 {[%clk 0:00:26]} 34. Rxg6+ {[%clk 0:00:26]}  Kf7 {[%clk 0:00:26]} 35. Rg7+ {[%clk 0:00:23]}  Ke6 {[%clk 0:00:27]} 36. Qe3+ {[%clk 0:00:18]}  Kd5 {[%clk 0:00:26]} 37. Re7 {[%clk 0:00:14]}  Qd3 {[%clk 0:00:19]} 38. Qe5+ {[%clk 0:00:11]}  Kc6 {[%clk 0:00:19]} 39. Qc7+ {[%clk 0:00:09]}  Kb5 {[%clk 0:00:19]} 40. Qxb7+ {[%clk 0:00:08]}  Ka4 {[%clk 0:00:19]} 41. Qb4# {[%clk 0:00:08]} 1-0


[Site "https://www.chess.com"]

[Event "Titled Tuesday Blitz May 9 Early 2023"]
[White "Kirillov, Dmitry"]
[Black "Vlassov, Nikolai"]
[WhiteFideId "34180572"]
[BlackFideId "4103360"]
[WhiteElo "2161"]
[BlackElo "2324"]
[Result "1-0"]
[Round "06"]
[TimeControl "180+2"]
[Date "2023.05.09"]
[WhiteClock "0:00:04"]
[BlackClock "0:00:00"]

1. e4 {[%clk 0:02:59]}  Nc6 {[%clk 0:02:59]} 2. Nf3 {[%clk 0:02:58]}  d5 {[%clk 0:02:59]} 3. exd5 {[%clk 0:02:58]}  Qxd5 {[%clk 0:03:00]} 4. Nc3 {[%clk 0:02:58]}  Qa5 {[%clk 0:03:00]} 5. d4 {[%clk 0:02:55]}  Bg4 {[%clk 0:03:00]} 6. Be2 {[%clk 0:02:55]}  O-O-O {[%clk 0:02:59]} 7. Be3 {[%clk 0:02:50]}  Nf6 {[%clk 0:02:59]} 8. O-O {[%clk 0:02:49]}  e5 {[%clk 0:02:59]} 9. d5 {[%clk 0:02:09]}  Nxd5 {[%clk 0:02:57]} 10. Nxd5 {[%clk 0:02:10]}  Rxd5 {[%clk 0:02:56]} 11. Nd2 {[%clk 0:02:10]}  Bxe2 {[%clk 0:02:52]} 12. Qxe2 {[%clk 0:02:11]}  Be7 {[%clk 0:02:38]} 13. Qg4+ {[%clk 0:02:09]}  Kb8 {[%clk 0:02:32]} 14. Nb3 {[%clk 0:02:09]}  Qb4 {[%clk 0:02:24]} 15. Qxg7 {[%clk 0:02:08]}  Rhd8 {[%clk 0:02:22]} 16. Qxf7 {[%clk 0:02:06]}  a5 {[%clk 0:02:20]} 17. a3 {[%clk 0:02:03]}  Qe4 {[%clk 0:02:09]} 18. c4 {[%clk 0:01:29]}  Qxc4 {[%clk 0:02:02]} 19. Nxa5 {[%clk 0:01:30]}  Nxa5 {[%clk 0:01:51]} 20. Qxe7 {[%clk 0:01:30]}  Qe4 {[%clk 0:01:44]} 21. Rac1 {[%clk 0:01:24]}  Nc6 {[%clk 0:01:33]} 22. Qf7 {[%clk 0:01:14]}  R5d7 {[%clk 0:01:27]} 23. Qh5 {[%clk 0:01:14]}  Rg8 {[%clk 0:01:21]} 24. g3 {[%clk 0:01:05]}  Rdg7 {[%clk 0:00:34]} 25. Rfe1 {[%clk 0:00:57]}  Qa4 {[%clk 0:00:30]} 26. Qe2 {[%clk 0:00:45]}  Rg4 {[%clk 0:00:25]} 27. Red1 {[%clk 0:00:36]}  e4 {[%clk 0:00:17]} 28. Rd5 {[%clk 0:00:07]}  Qb3 {[%clk 0:00:14]} 29. Rcd1 {[%clk 0:00:06]}  b6 {[%clk 0:00:12]} 30. Rd7 {[%clk 0:00:03]}  h5 {[%clk 0:00:11]} 31. R7d5 {[%clk 0:00:03]}  h4 {[%clk 0:00:11]} 32. Kg2 {[%clk 0:00:03]}  hxg3 {[%clk 0:00:10]} 33. hxg3 {[%clk 0:00:04]}  Qa4 {[%clk 0:00:07]} 34. Rd7 {[%clk 0:00:04]}  Ne5 {[%clk 0:00:05]} 35. Rd8+ {[%clk 0:00:04]}  Rxd8 {[%clk 0:00:04]} 36. Rxd8+ {[%clk 0:00:05]}  Kb7 {[%clk 0:00:05]} 37. Bf4 {[%clk 0:00:06]}  e3 {[%clk 0:00:03]} 38. Rd1 {[%clk 0:00:03]}  Qc6+ {[%clk 0:00:02]} 39. f3 {[%clk 0:00:03]}  Rxf4 {[%clk 0:00:02]} 40. gxf4 {[%clk 0:00:03]}  Qg6+ {[%clk 0:00:02]} 41. Kf1 {[%clk 0:00:04]}  Nc6 {[%clk 0:00:01]} 42. Qxe3 {[%clk 0:00:04]}  Qg3 {[%clk 0:00:01]} 43. Qe4 {[%clk 0:00:04]}  Qh3+ {[%clk 0:00:00]} 44. Ke1 {[%clk 0:00:04]} 1-0


[Site "https://www.chess.com"]

[Event "Titled Tuesday Blitz May 9 Early 2023"]
[White "Brunner, Nicolas"]
[Black "Mohammed, Zozek Salah Mohammed"]
[WhiteFideId "620246"]
[BlackFideId "4803361"]
[WhiteElo "2327"]
[BlackElo "2211"]
[Result "1-0"]
[Round "06"]
[TimeControl "180+2"]
[Date "2023.05.09"]
[WhiteClock "0:00:24"]
[BlackClock "0:00:00"]

1. Nf3 {[%clk 0:03:00]}  d5 {[%clk 0:02:54]} 2. g3 {[%clk 0:03:00]}  c6 {[%clk 0:02:52]} 3. Bg2 {[%clk 0:03:00]}  Nf6 {[%clk 0:02:53]} 4. O-O {[%clk 0:03:00]}  e6 {[%clk 0:02:53]} 5. d4 {[%clk 0:02:57]}  Nbd7 {[%clk 0:02:54]} 6. c4 {[%clk 0:02:56]}  dxc4 {[%clk 0:02:52]} 7. a4 {[%clk 0:02:55]}  Rb8 {[%clk 0:02:46]} 8. Nfd2 {[%clk 0:02:47]}  c5 {[%clk 0:02:21]} 9. Nxc4 {[%clk 0:02:38]}  cxd4 {[%clk 0:02:18]} 10. Qxd4 {[%clk 0:02:37]}  Bc5 {[%clk 0:02:11]} 11. Nd6+ {[%clk 0:02:33]}  Ke7 {[%clk 0:02:11]} 12. Nxc8+ {[%clk 0:02:33]}  Rxc8 {[%clk 0:02:06]} 13. Qd3 {[%clk 0:02:23]}  Qb6 {[%clk 0:01:57]} 14. Nc3 {[%clk 0:02:13]}  Rhd8 {[%clk 0:01:53]} 15. Qb5 {[%clk 0:02:11]}  Ng4 {[%clk 0:01:32]} 16. Qxb6 {[%clk 0:02:05]}  Nxb6 {[%clk 0:01:21]} 17. Bxb7 {[%clk 0:02:03]}  Rc7 {[%clk 0:01:12]} 18. Bg2 {[%clk 0:01:43]}  Nc4 {[%clk 0:01:09]} 19. Ne4 {[%clk 0:01:33]}  Bd4 {[%clk 0:01:03]} 20. Rb1 {[%clk 0:01:20]}  f5 {[%clk 0:00:51]} 21. Bg5+ {[%clk 0:01:20]}  Nf6 {[%clk 0:00:46]} 22. Nxf6 {[%clk 0:01:15]}  gxf6 {[%clk 0:00:47]} 23. Bf4 {[%clk 0:01:15]}  e5 {[%clk 0:00:45]} 24. Bc1 {[%clk 0:01:15]}  Rb8 {[%clk 0:00:32]} 25. b4 {[%clk 0:01:09]}  Bc3 {[%clk 0:00:17]} 26. b5 {[%clk 0:01:09]}  a6 {[%clk 0:00:17]} 27. Rd1 {[%clk 0:00:52]}  axb5 {[%clk 0:00:16]} 28. axb5 {[%clk 0:00:52]}  e4 {[%clk 0:00:16]} 29. f3 {[%clk 0:00:48]}  e3 {[%clk 0:00:11]} 30. f4 {[%clk 0:00:46]}  Nd2 {[%clk 0:00:11]} 31. Bxd2 {[%clk 0:00:43]}  exd2 {[%clk 0:00:12]} 32. Kf1 {[%clk 0:00:33]}  Rc5 {[%clk 0:00:10]} 33. Bc6 {[%clk 0:00:31]}  Kd6 {[%clk 0:00:08]} 34. e3 {[%clk 0:00:31]}  Rb6 {[%clk 0:00:03]} 35. Ke2 {[%clk 0:00:31]}  Ba5 {[%clk 0:00:04]} 36. Ra1 {[%clk 0:00:29]}  Bb4 {[%clk 0:00:04]} 37. Ra2 {[%clk 0:00:26]}  Bc3 {[%clk 0:00:03]} 38. Rc2 {[%clk 0:00:26]}  Bb4 {[%clk 0:00:02]} 39. Rb2 {[%clk 0:00:23]}  Bc3 {[%clk 0:00:00]} 40. Rb3 {[%clk 0:00:24]} 1-0


[Site "https://www.chess.com"]

[Event "Titled Tuesday Blitz May 9 Early 2023"]
[White "Hoffmann, Asa"]
[Black "Sreyas Payyappat"]
[WhiteFideId "2001470"]
[BlackFideId "46674969"]
[WhiteElo "2117"]
[BlackElo "2043"]
[Result "0-1"]
[Round "06"]
[TimeControl "180+2"]
[Date "2023.05.09"]
[WhiteClock "0:00:30"]
[BlackClock "0:00:12"]

1. d4 {[%clk 0:02:57]}  Nf6 {[%clk 0:02:59]} 2. Bg5 {[%clk 0:02:54]}  d5 {[%clk 0:02:58]} 3. Nd2 {[%clk 0:02:54]}  c5 {[%clk 0:02:55]} 4. c3 {[%clk 0:02:53]}  Nc6 {[%clk 0:02:53]} 5. e3 {[%clk 0:02:53]}  e5 {[%clk 0:02:50]} 6. Bb5 {[%clk 0:02:52]}  exd4 {[%clk 0:02:46]} 7. exd4 {[%clk 0:02:51]}  cxd4 {[%clk 0:02:44]} 8. cxd4 {[%clk 0:02:51]}  Bb4 {[%clk 0:02:40]} 9. Nf3 {[%clk 0:02:48]}  O-O {[%clk 0:02:33]} 10. O-O {[%clk 0:02:48]}  Bg4 {[%clk 0:02:31]} 11. h3 {[%clk 0:02:43]}  Bxd2 {[%clk 0:02:24]} 12. Bxf6 {[%clk 0:02:11]}  Qxf6 {[%clk 0:01:40]} 13. hxg4 {[%clk 0:02:04]}  Ba5 {[%clk 0:01:23]} 14. Bxc6 {[%clk 0:01:59]}  bxc6 {[%clk 0:01:22]} 15. Rc1 {[%clk 0:01:59]}  Rac8 {[%clk 0:01:21]} 16. Ne5 {[%clk 0:01:57]}  Rfe8 {[%clk 0:01:15]} 17. f4 {[%clk 0:01:53]}  Bb6 {[%clk 0:01:13]} 18. Qd3 {[%clk 0:01:52]}  Qe6 {[%clk 0:00:54]} 19. g5 {[%clk 0:01:38]}  f6 {[%clk 0:00:36]} 20. gxf6 {[%clk 0:01:35]}  gxf6 {[%clk 0:00:37]} 21. Nf3 {[%clk 0:01:34]}  Qe4 {[%clk 0:00:26]} 22. Qd2 {[%clk 0:01:26]}  Qe3+ {[%clk 0:00:16]} 23. Qxe3 {[%clk 0:01:24]}  Rxe3 {[%clk 0:00:17]} 24. Rfe1 {[%clk 0:01:22]}  Rd3 {[%clk 0:00:17]} 25. Rcd1 {[%clk 0:01:19]}  Rxd1 {[%clk 0:00:17]} 26. Rxd1 {[%clk 0:01:19]}  Kf7 {[%clk 0:00:16]} 27. Kf2 {[%clk 0:01:19]}  Ke6 {[%clk 0:00:16]} 28. Rh1 {[%clk 0:01:17]}  Rc7 {[%clk 0:00:15]} 29. g4 {[%clk 0:01:17]}  Rg7 {[%clk 0:00:14]} 30. g5 {[%clk 0:01:15]}  fxg5 {[%clk 0:00:13]} 31. Nxg5+ {[%clk 0:01:15]}  Kf5 {[%clk 0:00:13]} 32. Kf3 {[%clk 0:01:15]}  Bxd4 {[%clk 0:00:11]} 33. Rxh7 {[%clk 0:01:06]}  Rxh7 {[%clk 0:00:10]} 34. Nxh7 {[%clk 0:01:06]}  c5 {[%clk 0:00:10]} 35. b3 {[%clk 0:01:04]}  c4 {[%clk 0:00:10]} 36. bxc4 {[%clk 0:01:04]}  dxc4 {[%clk 0:00:11]} 37. Ng5 {[%clk 0:01:01]}  c3 {[%clk 0:00:10]} 38. Ke2 {[%clk 0:00:53]}  Kxf4 {[%clk 0:00:11]} 39. Nh3+ {[%clk 0:00:44]}  Kg4 {[%clk 0:00:11]} 40. Ng1 {[%clk 0:00:43]}  Bxg1 {[%clk 0:00:11]} 41. Kd3 {[%clk 0:00:30]}  Bd4 {[%clk 0:00:12]} 0-1


[Site "https://www.chess.com"]

[Event "Titled Tuesday Blitz May 9 Early 2023"]
[White "Kalajzic, Ivan"]
[Black "ArtemDyachuk"]
[WhiteFideId "14506378"]
[WhiteElo "2203"]
[BlackElo "2542"]
[Result "1-0"]
[Round "06"]
[TimeControl "180+2"]
[Date "2023.05.09"]
[WhiteClock "0:01:25"]
[BlackClock "0:00:19"]

1. b3 {[%clk 0:03:00]}  e5 {[%clk 0:02:55]} 2. Bb2 {[%clk 0:03:00]}  Nc6 {[%clk 0:02:55]} 3. e3 {[%clk 0:03:01]}  d5 {[%clk 0:02:56]} 4. Bb5 {[%clk 0:03:01]}  Bd6 {[%clk 0:02:55]} 5. f4 {[%clk 0:03:01]}  d4 {[%clk 0:01:48]} 6. fxe5 {[%clk 0:02:54]}  Bxe5 {[%clk 0:01:47]} 7. Nf3 {[%clk 0:02:54]}  Bf6 {[%clk 0:01:39]} 8. Bxc6+ {[%clk 0:02:49]}  bxc6 {[%clk 0:01:39]} 9. Bxd4 {[%clk 0:02:49]}  c5 {[%clk 0:01:29]} 10. Bxf6 {[%clk 0:02:45]}  Qxf6 {[%clk 0:01:30]} 11. Nc3 {[%clk 0:02:44]}  Ne7 {[%clk 0:01:26]} 12. O-O {[%clk 0:02:43]}  O-O {[%clk 0:01:25]} 13. Qe1 {[%clk 0:02:39]}  Bb7 {[%clk 0:01:23]} 14. Nh4 {[%clk 0:02:38]}  Qe6 {[%clk 0:01:17]} 15. Qg3 {[%clk 0:02:35]}  Rad8 {[%clk 0:01:10]} 16. Rf2 {[%clk 0:02:31]}  f6 {[%clk 0:01:04]} 17. Raf1 {[%clk 0:02:29]}  Kh8 {[%clk 0:01:03]} 18. d3 {[%clk 0:02:17]}  g5 {[%clk 0:01:00]} 19. Nf5 {[%clk 0:02:15]}  Ng6 {[%clk 0:00:48]} 20. e4 {[%clk 0:02:08]}  Nf4 {[%clk 0:00:44]} 21. Rxf4 {[%clk 0:02:08]}  Qe5 {[%clk 0:00:41]} 22. Ne2 {[%clk 0:01:53]}  Rg8 {[%clk 0:00:40]} 23. R4f2 {[%clk 0:01:46]}  Qb2 {[%clk 0:00:40]} 24. Ne3 {[%clk 0:01:33]}  Rdf8 {[%clk 0:00:25]} 25. Qxc7 {[%clk 0:01:29]}  Rg7 {[%clk 0:00:25]} 26. Qxc5 {[%clk 0:01:29]}  Rc8 {[%clk 0:00:23]} 27. Qd4 {[%clk 0:01:27]}  Qxa2 {[%clk 0:00:23]} 28. Rxf6 {[%clk 0:01:26]}  a5 {[%clk 0:00:19]} 29. Rf8+ {[%clk 0:01:25]} 1-0


[Site "https://www.chess.com"]